bitfinex/quotes_BTCUSD_20220303
["timestamp","ask_amount","ask_price","bid_price","bid_amount"]
[1646337166461,0.08589234,42162.0,42157.0,0.362952]
[1646337166663,0.00030558,42162.0,42157.0,0.362952]
[1646337166862,0.00020372,42162.0,42157.0,0.362952]
[1646337167066,0.14234702,42166.0,42157.0,0.362952]
[1646337167463,0.14234702,42166.0,42159.0,0.362952]
[1646337167664,0.00010186,42162.0,42159.0,0.362952]
[1646337167863,0.00020372,42162.0,42159.0,0.362952]
[1646337168065,0.00030558,42162.0,42159.0,0.362952]
[1646337168463,0.00010186,42162.0,42159.0,0.362952]
[1646337168663,0.09417288,42165.0,42159.0,0.422288]
[1646337169063,0.09417288,42165.0,42159.0,0.362952]
[1646337169264,0.00012972,42163.0,42159.0,0.362952]
[1646337169514,0.00038916,42163.0,42159.0,0.362952]
[1646337169817,0.14234702,42160.0,42157.0,0.362952]
[1646337170417,0.14234702,42160.0,42157.0,0.368952]
[1646337171820,0.14234702,42160.0,42157.0,0.362952]
[1646337172016,0.14234702,42160.0,42157.0,0.36284621]
[1646337173663,0.16420421,42163.0,42153.0,0.07224325]
[1646337173864,0.14234702,42160.0,42154.0,0.3740862]
[1646337174265,0.14234702,42160.0,42156.0,0.37344145]
[1646337174462,0.14234702,42160.0,42157.0,0.01084608]
[1646337174664,0.00013687,42161.0,42159.0,0.01474705]
[1646337174865,0.14234702,42161.0,42153.0,0.07270464]
[1646337175067,0.14234702,42162.0,42154.0,0.36284]
[1646337175264,9.393e-05,42161.0,42157.0,0.05934]
[1646337175464,0.00018786,42161.0,42158.0,0.66284]
[1646337175766,0.00028179,42161.0,42158.0,0.66284]
[1646337175965,0.00018786,42161.0,42159.0,0.36284]
[1646337176166,0.00018786,42161.0,42160.0,0.67721783]
[1646337176367,0.00018786,42161.0,42160.0,0.67805831]
[1646337176368,9.393e-05,42161.0,42160.0,0.67805831]
[1646337176573,0.14234702,42170.0,42163.0,0.36284]
[1646337176765,0.15429039,42168.0,42163.0,0.422171]
[1646337177216,0.24685211,42171.0,42163.0,0.422171]
[1646337177415,0.24685211,42171.0,42163.0,0.059331]
[1646337178018,0.15436958,42166.0,42160.0,0.3]
[1646337178215,0.15436958,42166.0,42161.0,0.36284]
[1646337178414,0.07480799,42167.0,42161.0,0.36284]
[1646337178616,0.24685211,42171.0,42161.0,0.36284]
[1646337178815,0.00022803,42169.0,42161.0,0.36284]
[1646337179324,0.00022803,42169.0,42164.0,0.36284]
[1646337179516,0.00022803,42169.0,42165.0,0.3]
[1646337179517,7.601e-05,42169.0,42165.0,0.3]
[1646337179716,0.1966,42173.0,42166.0,0.36284]
[1646337180121,0.14234702,42175.0,42166.0,0.36284]
[1646337180421,0.00029874,42169.0,42166.0,0.36884]
[1646337180619,0.00044811,42169.0,42166.0,0.36884]
[1646337180875,0.00044811,42169.0,42168.0,0.36284]
[1646337181074,0.00014937,42169.0,42168.0,1.10625]
[1646337181277,0.02361,42195.0,42168.0,1.10625]
[1646337181278,0.1841,42197.0,42172.0,0.74341]
[1646337181474,0.21137406,42193.0,42178.0,0.37462911]
[1646337181675,0.05256423,42184.0,42180.0,0.118593]
[1646337181874,0.05256423,42184.0,42181.0,0.36284]
[1646337182073,0.10279177,42187.0,42182.0,0.3]
[1646337182276,0.14234702,42192.0,42183.0,0.36284]
[1646337182474,0.14234702,42192.0,42183.0,0.118586]
[1646337182680,0.14234702,42192.0,42184.0,0.36284]
[1646337182874,0.14234702,42192.0,42186.0,0.36284]
[1646337183074,0.14234702,42192.0,42186.0,0.362612]
[1646337183278,0.00023716,42190.0,42186.0,0.362612]
[1646337183475,0.00035574,42190.0,42186.0,0.362612]
[1646337183678,0.15418702,42202.0,42187.0,0.07091]
[1646337183880,0.15418702,42202.0,42190.0,0.362612]
[1646337183881,0.19424933,42198.0,42190.0,0.362612]
[1646337184078,0.14234702,42202.0,42191.0,0.3]
[1646337184513,0.06236334,42192.0,42191.0,0.3]
[1646337184719,0.18234872,42192.0,42191.0,0.362612]
[1646337184918,0.18234872,42192.0,42184.0,0.247221]
[1646337184919,0.5,42190.0,42184.0,0.247221]
[1646337185113,0.5,42190.0,42184.0,0.01571598]
[1646337185114,0.14234702,42187.0,42184.0,0.01571598]
[1646337185313,0.14234702,42187.0,42177.0,0.01592277]
[1646337185512,0.34630059,42190.0,42180.0,0.01467568]
[1646337185513,0.14234702,42186.0,42180.0,0.01467568]
[1646337185710,0.07274504,42185.0,42180.0,0.01467568]
[1646337185912,0.14234702,42186.0,42180.0,0.01467568]
[1646337186114,0.14234702,42186.0,42181.0,0.362612]
[1646337186311,0.14234702,42186.0,42181.0,0.01182103]
[1646337186514,0.14234702,42186.0,42183.0,0.01216949]
[1646337186712,0.14234702,42186.0,42184.0,0.01548612]
[1646337186914,0.20147888,42188.0,42184.0,0.01166039]
[1646337187113,0.14234702,42188.0,42179.0,0.059306]
[1646337187313,0.14234702,42188.0,42185.0,0.01163042]
[1646337187513,0.14234702,42188.0,42183.0,0.059301]
[1646337187715,0.14234702,42188.0,42185.0,0.01006837]
[1646337187916,0.14234702,42188.0,42184.0,0.01117981]
[1646337188113,0.14234702,42188.0,42183.0,0.01564003]
[1646337188369,0.14234702,42188.0,42179.0,0.37595917]
[1646337188565,0.14234702,42188.0,42181.0,0.362612]
[1646337188765,0.33521259,42188.0,42181.0,0.014481]
[1646337188968,0.21472314,42184.0,42181.0,0.013249]
[1646337189165,0.21472314,42184.0,42182.0,0.362612]
[1646337189966,0.14234702,42188.0,42182.0,0.362612]
[1646337190165,0.14234702,42188.0,42181.0,0.362612]
[1646337190574,0.05508513,42187.0,42182.0,0.369612]
[1646337190767,0.05508513,42187.0,42182.0,0.007]
[1646337191368,0.05508513,42187.0,42183.0,0.0593]
[1646337192024,0.14234702,42188.0,42183.0,0.0593]
[1646337192227,0.20883086,42187.0,42183.0,0.0593]
[1646337192624,0.14234702,42188.0,42184.0,0.015672]
[1646337192824,0.14234702,42188.0,42183.0,0.0663]
[1646337193024,0.14234702,42188.0,42183.0,0.007]
[1646337193227,0.12043865,42192.0,42183.0,0.007]
[1646337193228,0.14234702,42184.0,42183.0,0.007]
[1646337193424,0.14234702,42184.0,42183.0,0.369612]
[1646337193824,0.14234702,42189.0,42180.0,0.0746753]
[1646337194426,0.14234702,42189.0,42181.0,0.37513378]
[1646337194626,0.14234702,42189.0,42184.0,0.362612]
[1646337194826,0.14234702,42189.0,42185.0,0.01485373]
[1646337195026,0.14234702,42189.0,42187.0,0.01127365]
[1646337195625,0.14234702,42189.0,42188.0,0.01008576]
[1646337195865,0.14234702,42189.0,42184.0,0.362612]
[1646337196261,0.14234702,42189.0,42186.0,0.362612]
[1646337196861,0.22971359,42195.0,42186.0,0.362612]
[1646337197064,0.14234702,42193.0,42188.0,0.059288]
[1646337197266,0.01184,42200.0,42188.0,0.059288]
[1646337197267,0.01184,42200.0,42189.0,0.48118225]
[1646337197461,0.14234702,42202.0,42189.0,0.11857025]
[1646337197660,0.00020486,42192.0,42190.0,0.01152025]
[1646337197860,0.00030729,42192.0,42191.0,0.362612]
[1646337198263,0.00020486,42192.0,42191.0,0.362612]
[1646337198467,0.14234702,42202.0,42191.0,0.69480717]
[1646337198661,0.13214,42208.0,42196.0,0.362612]
[1646337198662,0.1203,42208.0,42196.0,0.362612]
[1646337198861,0.14234702,42208.0,42197.0,0.11854]
[1646337199062,0.14234702,42208.0,42198.0,0.01237912]
[1646337199262,0.24710464,42208.0,42198.0,0.01237912]
[1646337199516,0.06216896,42204.0,42200.0,0.118539]
[1646337199718,0.06216896,42204.0,42202.0,0.059271]
[1646337200418,0.06216896,42204.0,42199.0,0.059269]
[1646337200618,0.06216896,42204.0,42197.0,0.12354]
[1646337200820,0.06216896,42204.0,42197.0,0.005]
[1646337201217,0.06216896,42204.0,42198.0,0.059279]
[1646337201420,0.14234702,42203.0,42197.0,0.005]
[1646337201616,0.06216896,42204.0,42197.0,0.005]
[1646337201819,0.03586948,42215.0,42206.0,0.059254]
[1646337202019,0.03474555,42233.0,42207.0,0.418494]
[1646337202020,0.14234702,42222.0,42207.0,0.418494]
[1646337202217,0.18474555,42233.0,42207.0,0.418494]
[1646337202218,0.18199684,42216.0,42207.0,0.418494]
[1646337202617,0.18199684,42216.0,42209.0,0.05926]
[1646337202816,0.11293813,42215.0,42210.0,0.3]
[1646337203668,0.11293813,42215.0,42211.0,0.362612]
[1646337203862,0.14234702,42220.0,42210.0,0.3]
[1646337204062,0.06065503,42217.0,42210.0,0.3]
[1646337204262,0.0002845,42215.0,42211.0,0.362612]
[1646337204463,0.00042675,42215.0,42213.0,0.362612]
[1646337204663,0.00042675,42215.0,42214.0,0.362612]
[1646337204863,0.0002845,42215.0,42214.0,0.362612]
[1646337205066,0.14234702,42230.0,42214.0,0.662612]
[1646337205264,0.05955687,42225.0,42214.0,0.3]
[1646337205462,0.14234702,42230.0,42214.0,0.3]
[1646337205664,0.20965127,42227.0,42217.0,0.05924068]
[1646337205863,0.20965127,42227.0,42219.0,0.01285943]
[1646337206063,0.09742254,42224.0,42219.0,0.01285943]
[1646337206367,0.00020274,42231.0,42227.0,0.059238]
[1646337206666,0.00020274,42231.0,42229.0,0.01038921]
[1646337206865,0.00020274,42231.0,42223.0,0.141977]
[1646337207117,0.10809421,42227.0,42224.0,0.01317992]
[1646337207318,0.10809421,42227.0,42225.0,0.362612]
[1646337207517,0.10809421,42227.0,42225.0,0.01449521]
[1646337207518,0.05736562,42226.0,42225.0,0.01449521]
[1646337207716,0.10809421,42227.0,42225.0,0.01469258]
[1646337207915,0.10809421,42227.0,42224.0,0.01482124]
[1646337208118,0.10809421,42227.0,42224.0,0.31482124]
[1646337208318,0.10809421,42227.0,42225.0,0.0146295]
[1646337208517,0.10809421,42227.0,42224.0,0.3]
[1646337208923,0.00020274,42231.0,42224.0,0.359238]
[1646337209124,0.00020274,42231.0,42227.0,0.481071]
[1646337209420,0.19633,42242.0,42228.0,0.662612]
[1646337209421,0.1845,42242.0,42228.0,0.662612]
[1646337209618,0.00683,42244.0,42228.0,0.687612]
[1646337209817,1.18564933,42245.0,42228.0,0.687612]
[1646337210021,0.10945708,42244.0,42229.0,0.7198]
[1646337210220,0.10945708,42244.0,42234.0,0.362612]
[1646337210421,0.10945708,42244.0,42233.0,0.05921865]
[1646337210422,0.10945708,42244.0,42237.0,0.362612]
[1646337210621,0.10945708,42244.0,42239.0,0.362612]
[1646337211472,0.14234702,42250.0,42239.0,0.362612]
[1646337211671,0.14234702,42250.0,42240.0,0.059214]
[1646337211870,0.14234702,42250.0,42241.0,0.662612]
[1646337212470,0.37466879,42250.0,42241.0,0.662612]
[1646337212871,0.23232177,42250.0,42238.0,0.3]
[1646337213071,0.14234702,42246.0,42239.0,0.362612]
[1646337213274,0.14234702,42248.0,42239.0,0.362612]
[1646337213772,0.05329815,42241.0,42239.0,0.362612]
[1646337213970,0.05329815,42241.0,42239.0,0.059219]
[1646337214177,0.15729419,42236.0,42234.0,0.18350762]
[1646337214371,0.44659702,42235.0,42234.0,0.18350762]
[1646337214618,0.44659702,42235.0,42228.0,0.20977806]
[1646337214619,0.6,42234.0,42228.0,0.20777806]
[1646337215018,0.01183,42241.0,42228.0,0.20777806]
[1646337215220,0.14234702,42240.0,42224.0,0.059235]
[1646337215420,0.14234702,42240.0,42225.0,0.5758292]
[1646337215618,0.00030676,42233.0,42225.0,0.5758292]
[1646337215820,0.00046014,42233.0,42225.0,0.5758292]
[1646337216019,0.00046014,42233.0,42225.0,0.362179]
[1646337216219,0.00015338,42233.0,42225.0,0.362179]
[1646337216418,0.06627048,42239.0,42229.0,0.059227]
[1646337216617,0.06627048,42239.0,42230.0,0.362179]
[1646337216821,0.06627048,42239.0,42228.0,0.118455]
[1646337217019,0.21338,42235.0,42229.0,0.362179]
[1646337217218,0.14234702,42240.0,42229.0,0.362179]
[1646337217420,0.00015338,42231.0,42230.0,0.059226]
[1646337217617,0.00046014,42231.0,42230.0,0.421405]
[1646337217818,0.00030676,42231.0,42230.0,0.421405]
[1646337218018,0.00015338,42231.0,42230.0,0.421405]
[1646337218263,0.14234702,42240.0,42230.0,0.421405]
[1646337218463,0.14234702,42240.0,42233.0,0.059227]
[1646337218666,0.01183,42246.0,42236.0,0.362179]
[1646337218867,0.26524702,42250.0,42239.0,0.059215]
[1646337219068,0.14234702,42250.0,42239.0,0.19312005]
[1646337219264,0.16158656,42246.0,42240.0,0.01595729]
[1646337219467,0.06807111,42248.0,42242.0,0.362179]
[1646337219665,0.14234702,42250.0,42241.0,0.01599765]
[1646337219864,0.14234702,42250.0,42239.0,0.17764]
[1646337220068,0.14234702,42250.0,42240.0,0.60386846]
[1646337220264,0.13234702,42248.0,42242.0,0.362179]
[1646337220466,0.47670041,42249.0,42241.0,0.01583293]
[1646337220666,0.08609389,42240.0,42239.0,0.004]
[1646337220865,0.08609389,42240.0,42239.0,0.37781209]
[1646337221064,0.13234702,42243.0,42239.0,0.01563309]
[1646337221265,0.13234702,42243.0,42239.0,0.004]
[1646337221467,0.13234702,42243.0,42239.0,0.01720137]
[1646337221667,0.13234702,42243.0,42241.0,0.01360302]
[1646337221867,0.13234702,42243.0,42240.0,0.01155472]
[1646337222119,0.21940206,42243.0,42237.0,0.362179]
[1646337222315,0.21950757,42243.0,42237.0,0.37634292]
[1646337222516,0.21961308,42243.0,42240.0,0.007]
[1646337222714,0.21971859,42243.0,42241.0,0.362179]
[1646337222914,0.21971859,42243.0,42240.0,0.01820452]
[1646337222915,0.21961308,42243.0,42240.0,0.01820452]
[1646337223114,0.0644588,42242.0,42240.0,0.01820452]
[1646337223315,0.0644588,42242.0,42240.0,0.007]
[1646337223520,0.3,42241.0,42240.0,0.007]
[1646337223718,0.3473,42241.0,42233.0,0.09887518]
[1646337223919,0.19875979,42234.0,42233.0,0.08646]
[1646337224118,0.0473,42234.0,42233.0,0.08646]
[1646337224317,0.2564176,42234.0,42233.0,0.08646]
[1646337226967,0.0473,42234.0,42233.0,0.08646]
[1646337227872,0.79070952,42234.0,42225.0,0.01128497]
[1646337228074,0.79070952,42234.0,42220.0,0.01422783]
[1646337228075,0.13234702,42226.0,42220.0,0.01422783]
[1646337228273,0.13234702,42222.0,42216.0,0.059252]
[1646337228469,0.17964702,42222.0,42216.0,0.059252]
[1646337228670,0.17964702,42222.0,42217.0,0.37679955]
[1646337229070,0.0473,42222.0,42217.0,0.37679955]
[1646337230227,0.0473,42222.0,42221.0,0.362179]
[1646337230430,0.17964702,42228.0,42221.0,0.01472764]
[1646337231130,0.32707571,42228.0,42221.0,0.01472764]
[1646337231330,0.32707571,42228.0,42224.0,0.01576073]
[1646337231529,0.26579472,42228.0,42223.0,0.059245]
[1646337232130,0.30425,42223.0,42214.0,0.118498]
[1646337232431,0.13234702,42219.0,42212.0,0.059259]
[1646337232633,0.0473,42218.0,42213.0,0.01340546]
[1646337233029,0.13234702,42215.0,42204.0,0.01147347]
[1646337233266,0.17288961,42210.0,42205.0,0.362179]
[1646337233468,0.17288961,42210.0,42206.0,0.362179]
[1646337233469,0.17964702,42210.0,42206.0,0.362179]
[1646337233668,0.17964702,42210.0,42207.0,0.01068237]
[1646337233868,0.13234702,42209.0,42200.0,0.118534]
[1646337234067,0.13234702,42209.0,42199.0,0.059279]
[1646337234267,0.13234702,42209.0,42205.0,0.01003791]
[1646337234569,0.19000805,42208.0,42200.0,0.01339025]
[1646337234968,0.23730805,42208.0,42201.0,0.059275]
[1646337235170,0.23730805,42208.0,42203.0,0.01066553]
[1646337236170,0.23730805,42208.0,42203.0,0.01442428]
[1646337236171,0.13234702,42205.0,42203.0,0.01442428]
[1646337236368,0.13234702,42205.0,42198.0,1.14726691]
[1646337236568,0.0473,42204.0,42200.0,0.01425569]
[1646337238214,0.0473,42204.0,42202.0,0.06279829]
[1646337238618,0.0473,42204.0,42201.0,0.059276]
[1646337238814,0.0473,42204.0,42203.0,0.01572799]
[1646337239413,0.13234702,42205.0,42204.0,0.01432128]
[1646337239614,0.13234702,42205.0,42201.0,0.059276]
[1646337239914,0.13234702,42205.0,42203.0,0.01470201]
[1646337240116,0.13234702,42205.0,42201.0,0.072498]
[1646337240318,0.13234702,42205.0,42203.0,0.01429069]
[1646337240514,0.13234702,42205.0,42200.0,0.01269053]
[1646337240768,0.13234702,42205.0,42203.0,0.01604448]
[1646337241968,0.13234702,42205.0,42200.0,0.01423667]
[1646337242175,0.13234702,42205.0,42201.0,0.362179]
[1646337242370,0.13234702,42205.0,42202.0,0.362179]
[1646337242572,0.13234702,42205.0,42201.0,0.37239469]
[1646337242769,0.13234702,42205.0,42201.0,0.01021569]
[1646337243370,0.13234702,42205.0,42203.0,0.07063465]
[1646337243670,0.0473,42207.0,42203.0,0.07063465]
[1646337243872,0.13234702,42210.0,42204.0,0.13130448]
[1646337244071,0.13234702,42210.0,42205.0,0.011491]
[1646337244272,0.13234702,42210.0,42207.0,0.01561925]
[1646337244516,0.13234702,42210.0,42208.0,0.07348765]
[1646337245522,0.13234702,42210.0,42208.0,0.059263]
[1646337245818,0.13234702,42213.0,42209.0,0.01052009]
[1646337246018,0.01183,42219.0,42209.0,0.31052009]
[1646337246218,0.1904,42220.0,42209.0,0.31052009]
[1646337246219,0.13234702,42216.0,42211.0,0.01271073]
[1646337246419,0.13234702,42216.0,42212.0,0.01113589]
[1646337247020,0.20195008,42214.0,42212.0,0.01113589]
[1646337247220,0.13234702,42220.0,42213.0,0.059265]
[1646337247421,0.13234702,42220.0,42214.0,0.3]
[1646337247623,0.13234702,42220.0,42215.0,0.01315467]
[1646337248262,0.01183,42227.0,42216.0,0.480671]
[1646337248263,0.30581451,42223.0,42216.0,0.480671]
[1646337248466,0.30581451,42223.0,42219.0,0.362179]
[1646337248467,0.13234702,42223.0,42219.0,0.362179]
[1646337248663,0.1245,42228.0,42218.0,0.118508]
[1646337248664,0.1824,42229.0,42221.0,0.01349212]
[1646337248866,0.19879096,42230.0,42221.0,0.01349212]
[1646337248867,0.13234702,42228.0,42221.0,0.01349212]
[1646337249065,0.13234702,42228.0,42223.0,0.013739]
[1646337249262,0.13234702,42228.0,42224.0,0.01109304]
[1646337249464,0.13234702,42228.0,42218.0,0.362179]
[1646337249663,0.13234702,42228.0,42225.0,0.01134162]
[1646337249863,0.13234702,42228.0,42225.0,0.01032759]
[1646337250064,0.13234702,42228.0,42227.0,0.01562697]
[1646337250264,0.13234702,42228.0,42226.0,0.059243]
[1646337250668,0.13534702,42228.0,42226.0,0.059243]
[1646337250865,0.003,42228.0,42226.0,0.059243]
[1646337251067,0.003,42228.0,42227.0,0.67408567]
[1646337251265,0.003,42228.0,42227.0,0.662179]
[1646337251667,0.00012507,42230.0,42228.0,0.3]
[1646337251867,0.00037521,42230.0,42229.0,0.74907116]
[1646337252122,0.00037521,42230.0,42229.0,1.52809116]
[1646337252123,0.00025014,42230.0,42229.0,1.52809116]
[1646337252326,0.1986,42249.0,42245.0,0.118425]
[1646337252523,0.025,42258.0,42245.0,0.1776349]
[1646337252724,0.18927378,42262.0,42246.0,0.3]
[1646337252725,0.13234702,42253.0,42246.0,0.3]
[1646337253125,0.13234702,42253.0,42251.0,0.118419]
[1646337256774,0.13234702,42253.0,42251.0,0.121419]
[1646337257975,0.13234702,42253.0,42251.0,0.118419]
[1646337258377,0.00015352,42254.0,42252.0,0.236788]
[1646337258582,0.10674702,42259.0,42257.0,0.059195]
[1646337258777,0.10674702,42262.0,42260.0,0.118392]
[1646337258977,0.30425,42261.0,42260.0,0.118392]
[1646337259178,0.30486399,42261.0,42252.0,0.47759]
[1646337259377,0.00015352,42255.0,42252.0,0.17759]
[1646337259636,0.10705406,42255.0,42253.0,0.118413]
[1646337259830,0.10705406,42255.0,42253.0,0.177622]
[1646337260029,0.16580177,42255.0,42253.0,0.177622]
[1646337260228,0.10674702,42255.0,42253.0,0.177622]
[1646337262229,0.30425,42254.0,42253.0,0.177622]
[1646337262430,0.30425,42254.0,42248.0,0.059218]
[1646337262630,0.10674702,42250.0,42245.0,0.118436]
[1646337262830,0.10674702,42246.0,42245.0,0.118436]
[1646337263276,0.41099702,42246.0,42245.0,0.118436]
[1646337263583,0.10674702,42246.0,42245.0,0.118436]
[1646337264776,0.0473,42251.0,42245.0,0.121436]
[1646337264976,0.10674702,42248.0,42245.0,0.121436]
[1646337265577,0.10686125,42248.0,42245.0,0.121436]
[1646337265776,0.10686125,42248.0,42246.0,0.059217]
[1646337265777,0.10708971,42248.0,42246.0,0.059217]
[1646337266176,0.10697548,42248.0,42246.0,0.059217]
[1646337266378,0.10674702,42248.0,42246.0,0.059217]
[1646337267026,0.00012248,42249.0,42246.0,0.059217]
[1646337267226,0.00012248,42249.0,42247.0,0.421387]
[1646337267227,0.00024496,42249.0,42247.0,0.421387]
[1646337267424,0.00024496,42249.0,42247.0,0.059208]
[1646337267425,0.00036744,42249.0,42247.0,0.059208]
[1646337267624,0.10674702,42254.0,42247.0,0.059208]
[1646337267625,0.10674702,42254.0,42253.0,0.29963256]
[1646337268828,0.01183,42261.0,42258.0,0.059203]
[1646337269035,0.1,42264.0,42259.0,0.0592]
[1646337269036,0.01183,42263.0,42259.0,0.0592]
[1646337269227,0.10674702,42264.0,42259.0,0.0592]
[1646337269526,0.19650255,42266.0,42258.0,0.3]
[1646337269728,0.22580258,42266.0,42258.0,0.3]
[1646337270126,0.36362607,42271.0,42262.0,0.059191]
[1646337270329,0.30425,42268.0,42265.0,0.059191]
[1646337270800,0.10674702,42269.0,42265.0,0.059191]
[1646337271199,0.09265283,42268.0,42265.0,0.059191]
[1646337271901,0.16664355,42268.0,42265.0,0.059191]
[1646337272300,0.09265283,42268.0,42265.0,0.059191]
[1646337272699,0.09265283,42268.0,42266.0,0.059189]
[1646337272900,0.00015628,42269.0,42266.0,0.059189]
[1646337273100,0.01182,42276.0,42267.0,0.01406546]
[1646337273301,0.05334127,42274.0,42267.0,0.01406546]
[1646337273503,0.05334127,42274.0,42265.0,0.07453376]
[1646337273702,0.00015619,42269.0,42265.0,0.07453376]
[1646337273901,0.1070594,42269.0,42267.0,0.07457256]
[1646337274101,0.30942825,42269.0,42267.0,0.059189]
[1646337274404,0.06206188,42267.0,42264.0,0.118369]
[1646337274625,0.10674702,42265.0,42256.0,0.01014354]
[1646337274822,0.10674702,42258.0,42253.0,0.41803556]
[1646337275022,0.10674702,42258.0,42256.0,0.059201]
[1646337275323,0.15404702,42258.0,42255.0,0.01071772]
[1646337276121,0.15404702,42258.0,42256.0,0.118402]
[1646337276322,0.10674702,42257.0,42256.0,0.118402]
[1646337276521,0.10674702,42257.0,42256.0,0.059201]
[1646337276723,0.10674702,42257.0,42256.0,0.003]
[1646337277324,0.00012361,42259.0,42257.0,0.01179418]
[1646337277325,0.00024722,42259.0,42257.0,0.01179418]
[1646337277522,0.10674702,42258.0,42256.0,0.003]
[1646337277924,0.10674702,42260.0,42257.0,0.362179]
[1646337278127,0.0473,42262.0,42257.0,0.01188612]
[1646337278377,0.0473,42262.0,42255.0,0.07478614]
[1646337278576,0.0473,42262.0,42256.0,0.362179]
[1646337278577,0.10674702,42257.0,42256.0,0.362179]
[1646337278777,0.10674702,42257.0,42255.0,0.01558514]
[1646337278978,0.10674702,42257.0,42253.0,0.53643856]
[1646337279581,0.10674702,42257.0,42255.0,0.01259137]
[1646337279778,0.0473,42262.0,42258.0,0.059202]
[1646337280178,0.10674702,42261.0,42258.0,0.059202]
[1646337280379,0.00010486,42257.0,42254.0,0.362179]
[1646337280578,0.00031458,42257.0,42254.0,0.42137471]
[1646337281077,0.00010486,42257.0,42255.0,0.01066596]
[1646337281280,0.10674702,42261.0,42256.0,0.362179]
[1646337281479,0.0473,42262.0,42259.0,0.0592]
[1646337282325,0.0473,42262.0,42259.0,0.07231616]
[1646337282525,0.0473,42262.0,42259.0,0.0592]
[1646337282724,0.0473,42262.0,42259.0,0.0632]
[1646337284023,0.0473,42262.0,42259.0,0.0592]
[1646337284423,0.10685188,42263.0,42260.0,0.059195]
[1646337284626,0.10674702,42263.0,42260.0,0.059195]
[1646337284825,0.10674702,42263.0,42260.0,0.07160198]
[1646337285124,0.10674702,42263.0,42260.0,0.059195]
[1646337285354,0.10705948,42263.0,42260.0,0.059195]
[1646337285523,0.10721571,42263.0,42259.0,0.07006648]
[1646337285766,0.10705948,42263.0,42259.0,0.07006648]
[1646337285972,0.10690325,42263.0,42259.0,0.07006648]
[1646337286167,0.10174702,42263.0,42259.0,0.07006648]
[1646337286368,0.10174702,42262.0,42259.0,0.07006648]
[1646337286768,0.10174702,42262.0,42259.0,0.01086648]
[1646337286968,0.10174702,42262.0,42259.0,0.0131078]
[1646337287172,0.09829986,42257.0,42253.0,0.41803556]
[1646337287469,0.20004688,42257.0,42255.0,0.01206264]
[1646337287668,0.20004688,42257.0,42254.0,0.362179]
[1646337288270,0.00011116,42257.0,42255.0,0.059201]
[1646337288470,0.00011116,42257.0,42256.0,0.37320552]
[1646337288471,0.00022232,42257.0,42256.0,0.37320552]
[1646337288672,0.00033348,42257.0,42255.0,0.11500091]
[1646337288870,0.00022232,42257.0,42256.0,0.362179]
[1646337289072,0.00011116,42257.0,42256.0,0.362179]
[1646337289270,0.10174702,42268.0,42264.0,0.059189]
[1646337289518,0.10174702,42268.0,42264.0,0.118378]
[1646337289920,0.00044458,42265.0,42264.0,0.118378]
[1646337290121,0.00088916,42265.0,42264.0,0.118378]
[1646337290322,0.00133374,42265.0,42264.0,0.118378]
[1646337290524,0.00088916,42265.0,42264.0,0.480557]
[1646337290721,0.00088916,42265.0,42264.0,0.484557]
[1646337290722,0.00044458,42265.0,42264.0,0.484557]
[1646337291020,0.10174702,42276.0,42273.0,0.118354]
[1646337291722,0.16054026,42274.0,42273.0,0.118354]
[1646337291922,0.00045317,42273.0,42270.0,0.118353]
[1646337292327,0.00045317,42273.0,42271.0,0.05918]
[1646337292522,0.10174702,42276.0,42271.0,0.05918]
[1646337292924,0.20815061,42273.0,42271.0,0.05918]
[1646337293271,0.1486513,42278.0,42268.0,0.118353]
[1646337293272,0.10174702,42272.0,42268.0,0.118353]
[1646337293776,0.10167067,42271.0,42268.0,0.118353]
[1646337294171,0.10167067,42271.0,42268.0,0.177538]
[1646337294573,0.00011331,42272.0,42268.0,0.118353]
[1646337294775,0.00011331,42272.0,42270.0,0.01303563]
[1646337294974,0.00022662,42272.0,42271.0,0.362179]
[1646337295172,0.00033993,42272.0,42271.0,0.362179]
[1646337295373,0.00022662,42272.0,42271.0,0.362179]
[1646337295571,0.10174702,42282.0,42271.0,0.362179]
[1646337295572,0.10504026,42277.0,42271.0,0.362179]
[1646337295873,0.10174702,42282.0,42279.0,0.059167]
[1646337296273,0.00057495,42280.0,42279.0,0.421346]
[1646337296472,0.00172485,42280.0,42279.0,0.421346]
[1646337296874,0.0011499,42280.0,42279.0,0.423346]
[1646337297126,0.10174702,42282.0,42279.0,0.002]
[1646337297527,0.2019393,42281.0,42279.0,0.002]
[1646337297727,0.35908681,42280.0,42271.0,0.177523]
[1646337297928,0.10174702,42274.0,42264.0,0.362179]
[1646337298226,0.10174702,42274.0,42266.0,0.059183]
[1646337298426,0.10174702,42274.0,42268.0,0.362179]
[1646337298626,0.3,42280.0,42267.0,0.362179]
[1646337298826,0.10174702,42275.0,42267.0,0.01201121]
[1646337299328,0.05993334,42272.0,42267.0,0.362179]
[1646337299927,0.10174702,42271.0,42267.0,0.362179]
[1646337300130,0.05993334,42272.0,42263.0,0.118369]
[1646337300131,0.10174702,42270.0,42263.0,0.118369]
[1646337300328,0.00019846,42273.0,42265.0,0.059182]
[1646337300529,9.923e-05,42273.0,42268.0,0.362179]
[1646337300776,0.11593889,42274.0,42269.0,0.01253907]
[1646337300977,0.11593889,42274.0,42271.0,0.01359851]
[1646337301176,0.11593889,42274.0,42266.0,0.362179]
[1646337301376,0.00019846,42271.0,42268.0,0.362179]
[1646337301578,0.00029769,42271.0,42268.0,0.362179]
[1646337301977,9.923e-05,42271.0,42268.0,0.362179]
[1646337302177,0.21768591,42274.0,42269.0,0.362179]
[1646337302378,0.21768591,42274.0,42267.0,0.13149705]
[1646337302781,9.923e-05,42272.0,42267.0,0.13149705]
[1646337302978,0.00029769,42272.0,42268.0,0.362179]
[1646337303378,0.00029769,42272.0,42268.0,0.37541233]
[1646337303578,9.923e-05,42272.0,42268.0,0.362179]
[1646337303777,0.21768591,42274.0,42268.0,0.362179]
[1646337304620,0.00015855,42272.0,42268.0,0.362179]
[1646337304821,0.00047565,42272.0,42268.0,0.37292144]
[1646337305021,0.1030152,42278.0,42268.0,0.37292144]
[1646337305225,0.1030152,42278.0,42271.0,0.421354]
[1646337305226,0.10238111,42278.0,42271.0,0.421354]
[1646337305426,0.10174702,42278.0,42272.0,0.362179]
[1646337305621,0.10174702,42278.0,42271.0,0.01065243]
[1646337306020,0.21821947,42278.0,42271.0,0.01065243]
[1646337306222,0.21821947,42278.0,42275.0,0.05917]
[1646337306422,0.21821947,42278.0,42275.0,0.03851953]